bitfinex/quotes_SOLUSD_20240620
["timestamp","ask_amount","ask_price","bid_price","bid_amount"]
[1718878964273,7.16,137.15,137.1,0.34]
[1718878964467,7.16,137.16,137.12,0.17]
[1718878964673,20.0,137.15,137.12,0.17]
[1718878965548,20.0,137.15,137.11,7.4631]
[1718878965849,27.16,137.15,137.1,0.17]
[1718878966048,7.16,137.14,137.1,7.6335]
[1718878966769,7.16,137.14,137.11,7.2934]
[1718878967652,27.16,137.15,137.11,7.2934]
[1718878970470,7.16,137.14,137.11,7.2934]
[1718878976977,20.0,137.15,137.1,0.34]
[1718878977281,34.41359797,137.2,137.14,7.2913]
[1718878977282,20.0,137.19,137.14,7.2913]
[1718878977452,20.0,137.19,137.15,0.17]
[1718878977657,7.16,137.18,137.15,7.4611]
[1718878978182,7.16,137.18,137.16,7.2905]
[1718878978483,7.16,137.18,137.15,7.291]
[1718878979366,27.2886,137.2,137.15,7.291]
[1718878979567,7.16,137.19,137.15,7.291]
[1718878979768,20.0,137.18,137.15,7.291]
[1718878980883,7.16,137.18,137.14,0.17]
[1718878981067,7.16,137.17,137.13,6.4592]
[1718878981416,7.16,137.17,137.13,6.2892]
[1718878981558,7.16,137.17,137.13,13.5814]
[1718878982072,7.16,137.17,137.13,6.2892]
[1718878982678,7.16,137.17,137.13,13.5815]
[1718878983091,7.16,137.17,137.13,6.2892]
[1718878983379,7.16,137.15,137.12,7.2928]
[1718878983581,7.16,137.15,137.11,7.2931]
[1718878984478,7.16,137.15,137.12,7.2928]
[1718878985461,7.2899,137.18,137.12,7.2928]
[1718878985678,7.16,137.15,137.12,7.2928]
[1718878990391,7.16,137.15,137.11,7.4633]
[1718878991789,20.0,137.19,137.12,7.2928]
[1718878991984,20.0,137.19,137.11,7.4632]
[1718878991985,7.16,137.15,137.11,7.4632]
[1718878994588,14.4515,137.15,137.1,7.4638]
[1718878994790,7.16,137.15,137.1,7.4638]
[1718878994999,7.16,137.15,137.11,7.2933]
[1718878997197,7.2909,137.16,137.11,7.2933]
[1718878997402,7.16,137.15,137.11,7.2933]
[1718878999176,7.16,137.14,137.1,0.17]
[1718878999383,7.16,137.13,137.1,7.6339]
[1718879000208,7.16,137.13,137.11,7.2933]
[1718879001018,7.16,137.14,137.11,7.2933]
[1718879001910,7.16,137.15,137.12,7.4628]
[1718879003092,7.16,137.15,137.11,7.4632]
[1718879005302,7.16,137.15,137.1,7.6337]
[1718879005687,7.16,137.15,137.11,7.2932]
[1718879006409,7.16,137.15,137.12,0.17]
[1718879007208,7.2908,137.16,137.12,0.17]
[1718879007404,27.16,137.15,137.12,0.17]
[1718879008002,27.16,137.15,137.11,0.34]
[1718879008898,34.4512,137.15,137.11,0.34]
[1718879010412,27.16,137.15,137.11,0.34]
[1718879010593,27.16,137.15,137.1,0.34]
[1718879012006,7.16,137.14,137.1,0.34]
[1718879013920,7.16,137.13,137.1,0.34]
[1718879016803,7.16,137.14,137.1,0.34]
[1718879018939,7.16,137.13,137.1,0.17]
[1718879019293,7.16,137.13,137.09,22.2823]
[1718879019700,7.16,137.12,137.05,21.7067]
[1718879019901,7.16,137.1,137.05,21.7067]
[1718879020123,7.16,137.09,137.05,21.7067]
[1718879020510,7.16,137.1,137.05,21.7067]
[1718879020711,7.16,137.1,137.05,28.8667]
[1718879020911,7.16,137.1,137.05,21.7067]
[1718879021106,7.16,137.09,137.05,21.7067]
[1718879021705,7.16,137.09,137.06,0.17]
[1718879022522,5.94922514,137.18,137.09,15.7506]
[1718879022723,15.8924,137.2,137.12,0.17]
[1718879022920,44.5324,137.2,137.12,0.17]
[1718879023116,7.16,137.17,137.12,0.34]
[1718879023298,44.5324,137.2,137.12,0.34]
[1718879023504,7.16,137.16,137.12,0.17]
[1718879023708,7.16,137.15,137.11,0.34]
[1718879024521,44.5324,137.2,137.11,0.34]
[1718879024720,7.16,137.15,137.11,0.34]
[1718879024918,44.5324,137.2,137.11,0.34]
[1718879025122,7.16,137.15,137.11,0.34]
[1718879025518,7.16,137.16,137.11,0.34]
[1718879025904,7.16,137.15,137.11,0.34]
[1718879027508,44.5324,137.2,137.11,0.34]
[1718879027726,7.16,137.16,137.11,7.5]
[1718879028609,7.16,137.15,137.11,0.34]
[1718879030322,7.16,137.14,137.11,0.34]
[1718879032226,7.16,137.14,137.1,6.7561]
[1718879032606,7.16,137.14,137.1,6.5861]
[1718879033531,7.16,137.14,137.11,0.17]
[1718879034119,13.15262716,137.19,137.11,0.17]
[1718879034414,7.16,137.14,137.11,0.17]
[1718879035235,20.0,137.18,137.11,0.17]
[1718879035422,7.16,137.15,137.11,0.34]
[1718879035613,7.16,137.14,137.11,0.34]
[1718879036531,7.16,137.14,137.11,7.4632]
[1718879037530,7.16,137.14,137.11,0.17]
[1718879038521,7.16,137.14,137.11,7.4634]
[1718879039717,7.16,137.15,137.11,7.4634]
[1718879040135,7.16,137.15,137.12,7.2928]
[1718879040627,13.15262716,137.18,137.11,0.17]
[1718879040836,7.16,137.18,137.14,0.17]
[1718879041012,7.16,137.18,137.15,7.2912]
[1718879041208,7.16,137.18,137.16,7.2907]
[1718879041456,7.16,137.18,137.15,7.291]
[1718879041633,7.16,137.18,137.14,7.6315]
[1718879042030,7.2887,137.2,137.14,7.6315]
[1718879042227,41.48448093,137.21,137.16,7.2904]
[1718879042426,33.707,137.23,137.14,7.5]
[1718879042427,20.0,137.2,137.14,7.5]
[1718879042626,27.16,137.2,137.16,0.17]
[1718879043126,27.16,137.2,137.16,0.34]
[1718879043325,27.16,137.2,137.16,7.6305]
[1718879043922,7.16,137.19,137.16,0.34]
[1718879044127,7.16,137.19,137.16,7.6307]
[1718879044617,7.16,137.19,137.16,0.34]
[1718879045418,7.16,137.19,137.16,0.17]
[1718879046827,7.16,137.19,137.15,7.291]
[1718879047230,7.16,137.19,137.16,7.2906]
[1718879047831,7.2877,137.22,137.17,7.2901]
[1718879048026,7.16,137.21,137.17,7.2901]
[1718879048425,7.16,137.21,137.16,0.17]
[1718879048426,7.2867,137.24,137.18,7.2896]
[1718879048623,7.16,137.21,137.18,7.2896]
[1718879049718,7.16,137.21,137.18,0.17]
[1718879049950,7.16,137.2,137.16,0.17]
[1718879050130,7.16,137.19,137.16,0.34]
[1718879050723,7.16,137.2,137.16,0.34]
[1718879051142,7.16,137.2,137.16,7.6307]
[1718879051941,7.16,137.2,137.17,7.29]
[1718879052136,7.16,137.21,137.18,0.17]
[1718879052327,7.2872,137.23,137.18,0.17]
[1718879052531,7.16,137.21,137.18,0.17]
[1718879053033,7.16,137.21,137.17,7.2899]
[1718879053034,7.16,137.2,137.16,0.17]
[1718879053236,7.16,137.19,137.15,6.1965]
[1718879054138,7.16,137.19,137.15,13.4875]
[1718879054524,7.16,137.19,137.16,0.17]
[1718879054934,7.2883,137.21,137.16,0.17]
[1718879055131,7.16,137.19,137.16,0.17]
[1718879058161,7.16,137.19,137.16,7.4606]
[1718879058339,7.2877,137.22,137.17,7.2902]
[1718879058539,20.0,137.21,137.18,7.2896]
[1718879058767,7.16,137.2,137.18,7.2896]
[1718879059059,20.0,137.21,137.18,7.2896]
[1718879059060,27.16,137.21,137.18,7.2896]
[1718879059561,20.0,137.21,137.18,7.2896]
[1718879059743,7.16,137.21,137.18,7.2896]
[1718879060258,7.16,137.21,137.18,0.17]
[1718879060460,7.16,137.2,137.16,7.4605]
[1718879060664,7.16,137.2,137.17,0.17]
[1718879061861,27.2875,137.22,137.17,0.17]
[1718879062072,7.16,137.21,137.17,7.4601]
[1718879062253,7.16,137.21,137.18,0.17]
[1718879063175,27.2875,137.22,137.18,0.17]
[1718879063379,7.16,137.21,137.18,0.17]
[1718879064044,7.2875,137.22,137.18,0.17]
[1718879064252,16.0983,137.3,137.22,0.17]
[1718879064467,7.284,137.29,137.22,7.33]
[1718879064653,7.16,137.28,137.24,7.4564]
[1718879064867,7.16,137.28,137.24,22.5761]
[1718879065077,7.16,137.28,137.24,15.2897]
[1718879065269,34.17648788,137.32,137.24,22.5759]
[1718879065270,7.2837,137.3,137.24,22.5759]
[1718879065478,7.16,137.28,137.25,0.17]
[1718879066359,7.16,137.28,137.24,22.5759]
[1718879066555,7.16,137.27,137.24,15.2897]
[1718879067764,7.16,137.27,137.24,22.5761]
[1718879069164,7.16,137.27,137.24,15.1197]
[1718879069370,7.16,137.27,137.23,7.2867]
[1718879070953,7.16,137.24,137.2,7.2883]
[1718879071155,7.16,137.27,137.19,6.28]
[1718879071369,7.16,137.27,137.17,22.9371]
[1718879071370,7.2878,137.22,137.17,22.9371]
[1718879071661,7.16,137.2,137.17,15.6469]
[1718879071867,7.16,137.2,137.17,22.937]
[1718879072382,7.16,137.18,137.13,15.8173]
[1718879072677,7.16,137.16,137.13,23.1092]
[1718879072876,7.16,137.17,137.13,23.1092]
[1718879073080,7.16,137.17,137.14,7.2916]
[1718879073282,7.16,137.16,137.15,7.2912]
[1718879074167,7.2887,137.2,137.15,7.2912]
[1718879074370,7.16,137.17,137.15,7.2912]
[1718879075378,7.16,137.17,137.13,15.8173]
[1718879075680,7.16,137.16,137.13,7.2922]
[1718879076660,20.0,137.19,137.14,0.17]
[1718879076862,7.16,137.18,137.15,7.2912]
[1718879077088,20.0,137.17,137.15,7.2912]
[1718879077687,7.16,137.18,137.15,7.2912]
[1718879077869,23.5223,137.21,137.16,7.2906]
[1718879078197,34.4486,137.2,137.15,7.2911]
[1718879078363,7.16,137.18,137.14,7.4616]
[1718879078695,7.16,137.19,137.14,7.4616]
[1718879079056,7.16,137.18,137.14,7.4616]
[1718879079584,7.16,137.18,137.14,7.4617]
[1718879080179,7.2892,137.19,137.04,23.1293]
[1718879080180,15.8606,137.19,137.08,6.4493]
[1718879080367,7.16,137.15,137.1,22.4075]
[1718879080565,7.16,137.15,137.11,7.2932]
[1718879080968,7.16,137.15,137.12,7.2928]
[1718879081267,7.2903,137.17,137.12,7.2927]
[1718879081465,7.16,137.15,137.12,7.2927]
[1718879081871,7.16,137.16,137.12,7.2927]
[1718879083378,20.0,137.18,137.13,7.2919]
[1718879083582,7.16,137.17,137.14,7.2917]
[1718879084171,7.16,137.17,137.13,7.4622]
[1718879084372,20.0,137.18,137.13,7.4622]
[1718879084574,7.16,137.17,137.14,7.2917]
[1718879084875,7.16,137.16,137.13,0.17]
[1718879085090,7.16,137.16,137.1,15.2475]
[1718879085091,7.16,137.14,137.1,7.2935]
[1718879085282,7.16,137.14,137.05,23.0545]
[1718879085283,15.0454,137.16,137.11,7.293]
[1718879085596,7.16,137.14,137.11,7.2933]
[1718879085774,22.3362,137.16,137.11,7.2933]
[1718879085977,7.16,137.15,137.11,7.2933]
[1718879087597,14.4517,137.15,137.09,0.17]
[1718879087776,14.4517,137.15,137.09,7.33]
[1718879087976,14.4517,137.15,137.1,7.2936]
[1718879088483,7.2917,137.15,137.1,7.2936]
[1718879088684,7.16,137.15,137.1,7.2936]
[1718879089794,7.16,137.15,137.11,7.2934]
[1718879090297,20.0,137.18,137.12,7.2927]
[1718879090595,20.0,137.18,137.13,7.2923]
[1718879090596,7.16,137.16,137.13,7.2923]
[1718879091288,7.16,137.16,137.12,7.4626]
[1718879092395,7.16,137.14,137.04,7.33]
[1718879092701,7.16,137.14,137.1,0.17]
[1718879092905,7.16,137.14,137.1,7.6336]
[1718879093397,7.16,137.14,137.11,7.2932]
[1718879094697,7.16,137.14,137.1,7.2937]
[1718879095703,7.16,137.14,137.11,7.2934]
[1718879099495,7.16,137.14,137.12,7.2927]
[1718879099798,7.16,137.14,137.11,7.2933]
[1718879100886,7.16,137.14,137.1,7.2938]
[1718879101398,20.0,137.18,137.09,7.2944]
[1718879101399,38.2253,137.18,137.09,7.2944]
[1718879101707,7.16,137.13,137.08,7.16]
[1718879102003,7.2914,137.15,137.07,7.16]
[1718879102194,7.16,137.12,137.1,7.2939]
[1718879102596,7.16,137.14,137.12,7.2928]
[1718879102899,7.16,137.14,137.09,0.17]
[1718879102900,7.16,137.16,137.13,7.2923]
[1718879103205,7.16,137.17,137.14,7.2918]
[1718879103418,7.16,137.16,137.14,7.2918]
[1718879103705,7.16,137.16,137.13,7.2922]
[1718879105400,7.16,137.16,137.12,7.4626]
[1718879109203,7.16,137.15,137.12,7.4626]
[1718879110001,20.0,137.18,137.12,7.16]
[1718879110196,7.16,137.17,137.13,0.17]
[1718879110392,20.0,137.16,137.13,0.17]
[1718879110593,20.7654662,137.19,137.13,0.17]
[1718879110794,7.16,137.17,137.14,7.2917]
[1718879111109,18.2213,137.21,137.13,0.17]
[1718879111110,7.2877,137.22,137.17,7.4601]
[1718879111339,7.16,137.22,137.17,0.17]
[1718879111520,15.6032,137.26,137.17,7.84]
[1718879111687,7.16,137.23,137.2,0.17]
[1718879111887,15.6032,137.26,137.2,0.34]
[1718879112185,20.0,137.25,137.22,7.2875]
[1718879112388,7.16,137.27,137.22,7.2875]
[1718879112717,7.16,137.26,137.22,0.17]
[1718879113006,7.16,137.26,137.22,7.6274]
[1718879113704,20.0,137.25,137.22,7.6274]
[1718879114489,22.651,137.34,137.24,0.17]
[1718879114690,7.16,137.29,137.26,0.17]
[1718879115106,61.994,137.34,137.26,7.4553]
[1718879115107,33.354,137.34,137.26,7.4553]
[1718879115299,14.4428,137.31,137.26,0.17]
[1718879115613,7.16,137.3,137.26,0.17]
[1718879115811,7.16,137.3,137.26,0.34]
[1718879116198,43.791,137.34,137.26,0.17]
[1718879116405,7.16,137.31,137.27,7.4545]
[1718879117188,7.2818,137.33,137.27,7.4545]
[1718879117388,20.0,137.32,137.27,7.4545]
[1718879118919,20.0,137.32,137.28,7.2842]
[1718879119816,20.0,137.32,137.27,7.4547]
[1718879120019,20.0,137.32,137.27,7.6247]
[1718879120424,7.2806,137.35,137.3,7.2832]
[1718879120719,20.0,137.34,137.3,7.2832]
[1718879121020,20.0,137.34,137.29,0.17]
[1718879121021,20.0,137.34,137.29,7.4536]
[1718879121201,7.2801,137.36,137.31,0.17]
[1718879121400,20.0,137.35,137.31,0.17]
[1718879121602,27.2807,137.35,137.31,0.17]
[1718879122016,27.2807,137.35,137.3,0.34]
[1718879122326,27.2807,137.35,137.31,0.17]
[1718879123816,20.0,137.35,137.31,0.17]
[1718879126824,20.0,137.35,137.31,7.4527]
[1718879127019,27.2801,137.36,137.31,0.17]
[1718879130124,7.2811,137.35,137.29,7.2834]
[1718879130303,7.2826,137.32,137.26,7.2849]
[1718879130503,20.0,137.31,137.26,7.2849]
[1718879130723,20.0,137.31,137.28,7.2843]
[1718879130903,20.0,137.31,137.28,7.284]
[1718879131105,20.0,137.35,137.27,7.2848]
[1718879131550,21.43,137.33,137.25,16.2371]
[1718879131707,7.283,137.31,137.26,7.2854]
[1718879131902,20.0,137.3,137.26,7.2854]
[1718879132217,20.0,137.3,137.27,7.2847]
[1718879132414,20.0,137.32,137.27,7.2847]
[1718879133212,20.0,137.32,137.28,0.17]
[1718879134010,27.2822,137.32,137.28,0.17]
[1718879134523,7.2817,137.34,137.28,0.17]
[1718879134720,7.2817,137.34,137.28,0.51]
[1718879134908,21.9424,137.38,137.32,0.17]
[1718879135416,20.0,137.37,137.32,0.17]
[1718879135838,27.2797,137.37,137.32,7.4521]
[1718879136034,27.2797,137.37,137.32,0.17]
[1718879136346,7.2801,137.36,137.32,0.17]
[1718879136717,27.2799,137.37,137.32,0.17]
[1718879136918,20.0,137.37,137.32,0.34]
[1718879137241,7.2803,137.36,137.32,0.34]
[1718879137420,7.2803,137.36,137.32,0.17]
[1718879139419,27.2798,137.37,137.32,7.4522]
[1718879139614,27.2798,137.37,137.32,0.17]
[1718879142228,7.2801,137.36,137.32,0.17]
[1718879143419,7.14,137.35,137.32,0.17]
[1718879145416,27.2797,137.37,137.32,7.6222]
[1718879145621,7.14,137.35,137.32,7.6222]
[1718879149339,7.14,137.36,137.32,7.6222]
[1718879150229,27.2797,137.37,137.32,7.6222]
[1718879150422,7.14,137.36,137.32,7.6222]
[1718879150825,7.14,137.35,137.32,7.6222]
[1718879151140,20.0,137.37,137.33,7.2817]
[1718879151330,7.14,137.36,137.33,7.2817]
[1718879151523,7.14,137.36,137.32,7.622]
[1718879151944,7.14,137.35,137.32,0.17]
[1718879152140,7.14,137.34,137.32,0.17]
[1718879155045,7.14,137.33,137.29,7.2835]
[1718879155346,7.14,137.32,137.28,15.1098]
[1718879155732,7.14,137.32,137.3,7.2831]
[1718879155935,7.14,137.32,137.28,15.1098]
[1718879156141,7.14,137.31,137.28,15.1098]
[1718879156523,7.14,137.32,137.29,7.2835]
[1718879157623,7.14,137.33,137.29,7.2835]
[1718879159334,14.4218,137.33,137.29,0.17]
[1718879161155,7.14,137.32,137.28,15.1098]
[1718879161535,7.14,137.32,137.29,0.17]
[1718879162343,7.14,137.33,137.29,0.17]
[1718879162939,7.14,137.33,137.29,7.6238]
[1718879164750,53.7484,137.37,137.3,7.2832]
[1718879164953,7.14,137.35,137.31,7.6227]
[1718879165255,7.2804,137.36,137.31,7.6227]
[1718879165456,14.4204,137.36,137.31,7.6227]
[1718879165656,7.2794,137.38,137.34,0.17]
[1718879165860,7.14,137.37,137.34,0.17]
[1718879166855,14.4201,137.36,137.33,0.17]
[1718879167159,14.4201,137.36,137.33,0.34]
[1718879167369,7.14,137.36,137.33,0.34]
[1718879167738,7.14,137.35,137.33,0.17]
[1718879167935,7.14,137.35,137.32,0.17]
[1718879168137,7.14,137.35,137.32,0.34]
[1718879168366,7.14,137.35,137.32,7.6222]
[1718879170361,7.14,137.35,137.33,7.2817]
[1718879170935,7.2792,137.38,137.33,7.2816]
[1718879171140,7.14,137.37,137.32,0.34]
[1718879171367,7.2786,137.39,137.34,7.2809]
[1718879171557,7.14,137.37,137.34,7.2809]
[1718879175861,7.278,137.4,137.35,7.6204]
[1718879176041,7.14,137.39,137.36,7.2801]
[1718879176963,7.14,137.39,137.35,7.6204]
[1718879177159,26.78902894,137.44,137.35,6.6464]
[1718879177462,7.14,137.41,137.37,7.4494]
[1718879178761,7.14,137.41,137.38,7.279]
[1718879180065,27.2766,137.43,137.38,7.279]
[1718879180238,7.14,137.41,137.37,7.4493]
[1718879181962,7.2757,137.45,137.38,0.17]
[1718879182264,7.14,137.44,137.4,7.2779]
[1718879182764,7.2753,137.45,137.4,7.2779]
[1718879183063,7.14,137.43,137.4,0.17]
[1718879184250,20.0,137.44,137.4,7.4478]
[1718879184445,7.14,137.43,137.4,7.4478]
[1718879185565,20.0,137.44,137.4,0.17]
[1718879185766,7.14,137.44,137.41,7.2772]
[1718879185960,7.2754,137.45,137.4,7.4477]
[1718879186163,27.14,137.44,137.4,7.4477]
[1718879186558,7.14,137.43,137.4,7.4477]
[1718879187860,20.0,137.44,137.41,7.2774]
[1718879188061,7.14,137.44,137.42,7.2768]
[1718879188258,7.14,137.44,137.41,7.2774]
[1718879189670,20.0,137.45,137.41,7.2774]
[1718879189969,7.14,137.44,137.41,7.2774]
[1718879190363,7.2745,137.47,137.42,7.2769]
[1718879190669,7.14,137.44,137.42,7.2769]
[1718879191648,7.14,137.44,137.41,7.2772]
[1718879194270,22.0678,137.49,137.4,6.5234]
[1718879194451,7.14,137.45,137.42,0.17]
[1718879194770,7.14,137.46,137.44,0.17]
[1718879195153,7.2738,137.48,137.44,0.17]
[1718879195359,7.14,137.46,137.44,0.17]
[1718879199590,7.14,137.46,137.44,7.4458]
[1718879201284,20.0,137.47,137.42,7.2767]
[1718879201285,7.14,137.45,137.42,7.2767]
[1718879201492,7.14,137.43,137.39,15.6914]
[1718879201675,7.14,137.42,137.39,15.6914]
[1718879201878,7.14,137.42,137.41,7.2774]
[1718879202393,7.14,137.43,137.41,7.2774]
[1718879202775,7.2751,137.46,137.41,7.2774]
[1718879203086,7.14,137.44,137.42,7.2769]
[1718879204989,27.2746,137.47,137.42,7.2769]
[1718879205180,27.2746,137.47,137.41,0.17]
[1718879205181,7.14,137.45,137.43,7.2764]
[1718879205581,7.14,137.45,137.42,7.2767]
[1718879205977,14.4153,137.45,137.41,7.2772]
[1718879206183,14.4153,137.45,137.4,0.17]
[1718879206184,7.14,137.44,137.4,7.4478]
[1718879206619,7.14,137.44,137.41,7.2774]
[1718879208097,7.275,137.46,137.41,7.2774]
[1718879208301,20.0,137.45,137.42,7.2769]
[1718879208888,20.0,137.46,137.42,7.2769]
[1718879209081,7.14,137.45,137.42,7.2769]
[1718879209585,7.14,137.43,137.39,22.9696]
[1718879209776,7.14,137.42,137.39,22.9696]
[1718879210683,7.14,137.42,137.4,7.448]
[1718879211082,7.14,137.43,137.4,7.448]
[1718879211285,7.14,137.43,137.4,0.17]
[1718879212903,7.14,137.43,137.4,7.448]
[1718879214506,20.0,137.46,137.42,7.2768]
[1718879214698,20.0,137.46,137.4,0.17]
[1718879214892,7.14,137.44,137.4,0.34]
[1718879215102,20.0,137.43,137.4,0.34]
[1718879215401,20.0,137.43,137.41,7.2772]
[1718879215598,20.0,137.43,137.4,7.6177]
[1718879217782,27.14,137.44,137.4,7.6177]
[1718879218104,34.4159,137.44,137.4,0.34]
[1718879218301,34.4159,137.44,137.4,0.17]
[1718879220404,15.6672,137.49,137.4,7.48]
[1718879220596,7.2752,137.46,137.42,0.17]
[1718879220802,20.0,137.45,137.42,0.17]
[1718879221105,27.14,137.45,137.41,0.17]
[1718879221287,27.14,137.45,137.4,0.34]
[1718879221631,7.2759,137.44,137.4,0.34]
[1718879221807,34.4155,137.45,137.4,7.6179]
[1718879223388,27.14,137.45,137.4,0.34]
[1718879223707,20.0,137.45,137.42,0.17]
[1718879224704,20.0,137.45,137.42,7.4468]
[1718879225411,20.0,137.45,137.42,0.17]
[1718879226683,20.0,137.45,137.42,0.34]
[1718879227697,20.0,137.45,137.43,0.17]
[1718879228308,7.14,137.45,137.43,0.17]
[1718879229611,27.14,137.46,137.43,0.17]
[1718879233009,7.14,137.45,137.39,15.6914]
[1718879233320,7.14,137.45,137.31,5.70516936]
[1718879233321,7.14,137.41,137.38,7.2789]
[1718879233816,7.14,137.42,137.39,7.2784]
[1718879236399,7.14,137.42,137.38,7.6188]
[1718879236595,14.417,137.42,137.38,0.34]
[1718879236801,14.417,137.42,137.38,0.17]
[1718879236802,7.14,137.41,137.38,0.17]
[1718879237620,7.14,137.41,137.38,7.449]
[1718879239613,7.14,137.41,137.39,7.2785]
[1718879239931,7.14,137.41,137.38,7.4488]
[1718879242423,27.2783,137.4,137.35,7.2803]
[1718879242600,7.14,137.37,137.35,7.2803]
[1718879242802,7.2783,137.4,137.34,7.2809]
[1718879243000,7.2783,137.4,137.35,7.2805]
[1718879244517,35.8377,137.41,137.36,7.2801]
[1718879244827,20.0,137.4,137.38,7.279]
[1718879245131,21.35709473,137.45,137.37,0.17]
[1718879245132,21.18709473,137.45,137.37,0.17]
[1718879245309,7.14,137.42,137.41,7.2773]
[1718879245814,27.14,137.42,137.4,7.2777]
[1718879246013,15.4582,137.45,137.41,7.2774]
[1718879246211,7.14,137.44,137.39,7.31]
[1718879246527,20.0,137.43,137.41,7.2771]
[1718879247323,20.0,137.43,137.4,7.2777]
[1718879247502,7.14,137.44,137.4,7.2777]
[1718879247933,7.14,137.43,137.4,7.2777]
[1718879248702,7.14,137.43,137.39,7.4483]
[1718879250224,7.2755,137.45,137.4,7.2779]
[1718879250426,7.14,137.43,137.4,7.2779]
[1718879250631,7.2755,137.45,137.4,7.2779]
[1718879250919,6.0684,137.47,137.42,0.17]
[1718879250920,7.2748,137.47,137.42,0.17]
[1718879251138,14.4148,137.47,137.42,7.4465]
[1718879251713,7.2748,137.47,137.42,7.4465]
[1718879251913,7.14,137.46,137.42,7.4465]
[1718879252827,6.4818,137.51,137.42,0.17]
[1718879253131,14.4135,137.49,137.44,7.4457]
[1718879254519,14.4139,137.48,137.44,0.17]
[1718879254920,7.14,137.47,137.44,0.17]
[1718879255104,14.4139,137.48,137.44,0.17]
[1718879255506,7.14,137.48,137.44,7.4457]
[1718879256833,7.2733,137.49,137.44,7.4457]
[1718879257014,7.14,137.48,137.44,7.4457]
[1718879257214,7.2728,137.5,137.45,7.2752]
[1718879257519,7.14,137.49,137.46,0.17]
[1718879258232,14.4132,137.49,137.45,0.17]
[1718879258411,14.4132,137.49,137.45,0.34]
[1718879258915,7.14,137.48,137.45,0.34]
[1718879260335,7.14,137.48,137.45,7.4453]
[1718879260718,7.14,137.48,137.46,0.17]
[1718879260922,16.1699,137.52,137.46,0.17]
[1718879261125,7.14,137.48,137.46,0.17]
[1718879262414,16.1699,137.52,137.46,0.17]
[1718879262614,7.14,137.48,137.45,7.2749]
[1718879263113,7.14,137.48,137.44,7.4456]
[1718879264048,7.14,137.47,137.44,7.4456]
[1718879264336,7.14,137.46,137.44,7.4456]
[1718879266733,7.14,137.48,137.38,6.0711]
[1718879266939,28.56,137.48,137.39,7.14]